fUST/lending_fUST_20251111
["ID","MTS","AMOUNT","RATE_DAILY","PERIOD"]
[393576718,1762809044577,-358.19028913,0.00022628,2]
[393576719,1762809044586,-27654.24334048,0.00022629,2]
[393576724,1762809046236,-1068.49709915,0.00022629,2]
[393576725,1762809046269,-505.02073508,0.00022629,2]
[393576727,1762809376798,592.71311533,0.0003711,20]
[393576729,1762809646858,170.24,0.00032877,120]
[393576730,1762809904438,500.0,0.00037111,60]
[393576731,1762809904694,592.1193,0.00037111,60]
[393576736,1762810025137,-150.0,0.00020155,2]
[393576737,1762810025159,-288.01389614,0.00021651,2]
[393576738,1762810025178,-2251.99071034,0.00021654,2]
[393576739,1762810025993,196.59063624,0.00018432,2]
[393576743,1762810041078,-179.11714593,0.00021654,2]
[393576853,1762810219502,5000.0,0.00019616,4]
[393576887,1762810232026,-852.41920799,0.0002,2]
[393576894,1762810232084,-1355.18306206,0.0002,2]
[393576896,1762810232094,-300.0,0.0002165,2]
[393576898,1762810232103,-300.0,0.0002165,2]
[393576900,1762810232112,-300.0,0.0002165,2]
[393576902,1762810232121,-244.0,0.0002165,2]
[393576904,1762810232130,-1200.0,0.0002165,2]
[393576906,1762810232139,-491.25238937,0.00021651,2]
[393576909,1762810232149,-884.25430086,0.00021651,2]
[393576912,1762810232158,-1570.43563833,0.00021651,2]
[393576915,1762810232167,-370.82322493,0.00021654,2]
[393576918,1762810232176,-1055.55710772,0.0002166,2]
[393576921,1762810232185,-989.794417,0.00021679,2]
[393576924,1762810232194,-173.627836,0.00022096,2]
[393576927,1762810232203,-999.0,0.00022096,2]
[393576930,1762810232212,-177.0,0.00022155,2]
[393576933,1762810232222,-2703.52211972,0.00022227,2]
[393576936,1762810232231,-160.0,0.0002229,2]
[393576939,1762810232240,-399.99776637,0.00022647,2]
[393576942,1762810232249,-5989.68514911,0.00022673,2]
[393576944,1762810232259,-1095.1329262,0.00022696,2]
[393576946,1762810232268,-500.0,0.00022772,2]
[393576948,1762810232278,-500.0,0.00022772,2]
[393576951,1762810232287,-500.0,0.00022772,2]
[393576954,1762810232296,-500.0,0.00022772,2]
[393576955,1762810232305,-500.0,0.00022772,2]
[393576957,1762810232314,-70.56155285,0.00022772,2]
[393576960,1762810232326,-518.02906731,0.00022772,2]
[393576962,1762810232335,-500.0,0.00022772,2]
[393576963,1762810232344,-9.57093269,0.00022772,2]
[393576966,1762810232355,-207.24782699,0.00022772,2]
[393576967,1762810232364,-1200.0,0.00022772,2]
[393576970,1762810232373,-34377.19161269,0.00022773,2]
[393576972,1762810232385,-445.0788873,0.00022773,2]
[393576974,1762810232395,-15177.72950001,0.00022773,2]
[393576976,1762810232404,-500.0,0.00022773,2]
[393576978,1762810232415,-500.0,0.00022773,2]
[393576980,1762810232424,-500.0,0.00022773,2]
[393576982,1762810232432,-500.0,0.00022773,2]
[393576984,1762810232441,-500.0,0.00022773,2]
[393576986,1762810232450,-501.27909665,0.00022773,2]
[393576988,1762810232459,-500.0,0.00022773,2]
[393576990,1762810232468,-500.0,0.00022773,2]
[393576991,1762810232477,-500.0,0.00022773,2]
[393576993,1762810232486,-172.71530472,0.00022795,2]
[393576995,1762810232495,-1992.24043388,0.00022796,2]
[393576997,1762810232505,-2200.10207672,0.00022796,2]
[393577000,1762810232516,-282.34546992,0.00022796,2]
[393577002,1762810232527,-395.15453008,0.00022796,2]
[393577049,1762810237972,-2193.4165003,0.00022796,2]
[393577061,1762810238085,-3145.0,0.00022796,2]
[393577210,1762810240294,-498.04,0.00022786,10]
[393577228,1762810246390,-641.0,0.00022568,2]
[393577252,1762810684349,159.03,0.00015984,5]
[393577253,1762810684663,159.03,0.00015984,5]
[393577271,1762810815633,388.31764,0.00013699,2]
[393577283,1762811012316,5000.0,0.0001866,2]
[393577284,1762811034585,5000.0,0.0001866,2]
[393577285,1762811057691,5000.0,0.0001866,2]
[393577286,1762811079946,5000.0,0.0001866,2]
[393577287,1762811102076,5000.0,0.0001866,2]
[393577288,1762811124307,5000.0,0.0001866,2]
[393577289,1762811233122,-150.97621662,0.00019573,2]
[393577290,1762811233143,-150.0,0.00019729,2]
[393577291,1762811233164,-2874.26138193,0.00019886,2]
[393577293,1762811349100,-4656.89483046,0.00019377,2]
[393577294,1762811358107,-343.10516954,0.00019377,2]
[393577295,1762811358128,-150.88265831,0.00019573,2]
[393577296,1762811358148,-261.11050346,0.00019787,2]
[393577346,1762811432320,-598.21024772,0.00019589,2]
[393577379,1762811438209,-4401.78975228,0.00019589,2]
[393577382,1762811438221,-41.49615026,0.00019787,2]
[393577384,1762811438231,-174.66424664,0.00019984,4]
[393577385,1762811438242,-388.31764,0.00020187,2]
[393577386,1762811438259,-169.58352199,0.00021448,5]
[393577387,1762811438269,-177.0,0.00021729,2]
[393577388,1762811438279,-183.54258516,0.000222,2]
[393577389,1762811438289,-183.54258514,0.000222,2]
[393577390,1762811438300,-183.54258514,0.00022547,2]
[393577391,1762811438309,-6162.0868134,0.00022595,2]
[393577392,1762811438320,-163.45282533,0.00022596,2]
[393577393,1762811438330,-1200.0,0.00022629,2]
[393577394,1762811438339,-5699.27952006,0.00022629,2]
[393577395,1762811438349,-432.58286079,0.0002263,2]
[393577396,1762811438359,-778.64914942,0.0002263,2]
[393577397,1762811438368,-1382.88088936,0.0002263,2]
[393577398,1762811438378,-500.0,0.00022646,2]
[393577399,1762811438387,-500.0,0.00022646,2]
[393577400,1762811438397,-500.0,0.00022646,2]
[393577401,1762811438407,-314.66016961,0.00022646,2]
[393577402,1762811438416,-500.0,0.00022646,2]
[393577403,1762811438427,-500.0,0.00022646,2]
[393577404,1762811438437,-500.0,0.00022646,2]
[393577405,1762811438447,-500.0,0.00022646,2]
[393577406,1762811438456,-268.83625853,0.00022646,2]
[393577407,1762811438466,-500.0,0.00022646,2]
[393577408,1762811438478,-500.0,0.00022646,2]
[393577409,1762811438488,-500.0,0.00022646,2]
[393577410,1762811438498,-500.0,0.00022646,2]
[393577411,1762811438508,-604.78280983,0.00022646,2]
[393577412,1762811438517,-500.0,0.00022646,2]
[393577413,1762811438527,-500.0,0.00022646,2]
[393577414,1762811438537,-500.0,0.00022646,2]
[393577415,1762811438547,-500.0,0.00022646,2]
[393577416,1762811438557,-5851.8710622,0.00022647,2]
[393577417,1762811438567,-3114.5590205,0.00022647,2]
[393577418,1762811438577,-2599.94540616,0.00022647,2]
[393577419,1762811438589,-591.94474644,0.00022647,2]
[393577420,1762811438598,-503.61024689,0.00022673,2]
[393577421,1762811438608,-340.7,0.00022686,10]
[393577422,1762811438618,-213.5347618,0.00022695,2]
[393577423,1762811438627,-47398.0030045,0.00022696,2]
[393577460,1762811440362,-828.592002,0.00022696,2]
[393577473,1762811440480,-322.38519491,0.00022696,2]
[393577600,1762812060885,322.012184,0.00037124,60]
[393577602,1762812445637,927.09401267,0.00018571,2]
[393577603,1762812450249,-150.0,0.0001996,2]
[393577604,1762812450271,-181.39291289,0.00020577,2]
[393577605,1762812483947,222.65,0.00015984,8]
[393577606,1762812571138,-414.04423737,0.00019548,2]
[393577665,1762812632740,-5000.0,0.00019353,2]
[393577666,1762812632750,-59.04185029,0.00019548,2]
[393577667,1762812632760,-564.00400754,0.00020371,2]
[393577668,1762812632770,-1200.23586111,0.00020452,7]
[393577669,1762812632779,-150.0,0.00020474,2]
[393577670,1762812632789,-304.89795436,0.00020552,2]
[393577671,1762812632799,-548.81631785,0.00020552,2]
[393577672,1762812632809,-974.69778051,0.00020552,2]
[393577673,1762812632819,-416.60510094,0.00020577,7]
[393577674,1762812632829,-999.0,0.0002106,2]
[393577675,1762812632838,-1000.0,0.00021524,2]
[393577676,1762812632848,-300.0,0.00021921,2]
[393577677,1762812632858,-9254.0118729,0.00021922,2]
[393577678,1762812632868,-2534.8560878,0.00022242,2]
[393577679,1762812632877,-3191.8901527,0.00022242,2]
[393577680,1762812632887,-1597.0764319,0.00022242,2]
[393577681,1762812632896,-850.0168158,0.00022242,2]
[393577682,1762812632906,-1326.22005745,0.00022326,2]
[393577683,1762812632916,-6259.64719885,0.00022338,2]
[393577684,1762812632926,-151.0,0.00022438,7]
[393577685,1762812632935,-151.0,0.00022438,7]
[393577686,1762812632946,-151.0,0.00022438,7]
[393577687,1762812632955,-161.844852,0.00022438,7]
[393577688,1762812632965,-152.625312,0.00022438,7]
[393577689,1762812632974,-151.0,0.00022438,7]
[393577690,1762812632983,-151.0,0.00022438,7]
[393577691,1762812632992,-151.0,0.00022438,7]
[393577692,1762812633001,-151.0,0.00022438,7]
[393577693,1762812633011,-151.0,0.00022438,7]
[393577694,1762812633021,-500.0,0.00022438,2]
[393577695,1762812633030,-344.56291481,0.00022438,2]
[393577696,1762812633040,-500.0,0.00022438,2]
[393577697,1762812633050,-500.0,0.00022438,2]
[393577698,1762812633059,-500.0,0.00022438,2]
[393577699,1762812633069,-500.0,0.00022438,2]
[393577700,1762812633078,-500.0,0.00022438,2]
[393577701,1762812633087,-730.08861746,0.00022439,2]
[393577702,1762812633098,-177.0,0.00022474,2]
[393577703,1762812633107,-184.26,0.000225,8]
[393577704,1762812633116,-184.26,0.000225,8]
[393577705,1762812633126,-150.99,0.000225,8]
[393577706,1762812633135,-236.90715765,0.00022537,2]
[393577707,1762812633144,-151.0,0.00022538,7]
[393577708,1762812633154,-151.0,0.00022538,7]
[393577709,1762812633163,-151.0,0.00022538,7]
[393577710,1762812633172,-152.716045,0.00022538,7]
[393577711,1762812633181,-151.0,0.00022538,7]
[393577712,1762812633190,-151.0,0.00022538,7]
[393577713,1762812633199,-151.0,0.00022538,7]
[393577714,1762812633208,-151.0,0.00022538,7]
[393577715,1762812633217,-151.0,0.00022538,7]
[393577716,1762812633227,-151.0,0.00022538,7]
[393577717,1762812633235,-217.581126,0.00022538,7]
[393577718,1762812633245,-217.581126,0.00022538,7]
[393577719,1762812633255,-217.581126,0.00022538,7]
[393577720,1762812633266,-217.581126,0.00022538,7]
[393577721,1762812633275,-217.581126,0.00022538,7]
[393577722,1762812633284,-217.581126,0.00022538,7]
[393577723,1762812633294,-217.581126,0.00022538,7]
[393577724,1762812633303,-217.581126,0.00022538,7]
[393577725,1762812633313,-151.0,0.00022538,2]
[393577726,1762812633323,-151.0,0.00022538,2]
[393577727,1762812633333,-151.0,0.00022538,2]
[393577728,1762812633342,-10000.0,0.00022538,7]
[393577729,1762812633351,-10000.0,0.00022538,7]
[393577730,1762812633361,-10000.0,0.00022538,7]
[393577731,1762812633371,-10000.0,0.00022538,7]
[393577732,1762812633381,-151.0,0.00022538,7]
[393577733,1762812633394,-10000.0,0.00022538,7]
[393577734,1762812633404,-10000.0,0.00022538,7]
[393577735,1762812633414,-10000.0,0.00022538,7]
[393577736,1762812633424,-10000.0,0.00022538,7]
[393577737,1762812633434,-10000.0,0.00022538,7]
[393577738,1762812633444,-10000.0,0.00022538,7]
[393577739,1762812633454,-10000.0,0.00022538,7]
[393577740,1762812633464,-10000.0,0.00022538,7]
[393577741,1762812633473,-10000.0,0.00022538,7]
[393577742,1762812633487,-10000.0,0.00022538,7]
[393577743,1762812633496,-10000.0,0.00022538,7]
[393577744,1762812633506,-10000.0,0.00022538,7]
[393577745,1762812633516,-10000.0,0.00022538,7]
[393577746,1762812633525,-8617.61839121,0.00022538,7]
[393577747,1762812633535,-151.0,0.00022538,7]
[393577748,1762812633544,-151.0,0.00022538,7]
[393577749,1762812633554,-283.358704,0.00022538,7]
[393577750,1762812633563,-151.0,0.00022538,7]
[393577751,1762812633572,-151.0,0.00022538,7]
[393577752,1762812633582,-333.756566,0.00022539,2]
[393577753,1762812633591,-333.756566,0.00022539,2]
[393577754,1762812633601,-333.756566,0.00022539,2]
[393577755,1762812633611,-333.756566,0.00022539,2]
[393577756,1762812633620,-333.756566,0.00022539,2]
[393577757,1762812633630,-333.756566,0.00022539,2]
[393577758,1762812633639,-333.756566,0.00022539,2]
[393577759,1762812633648,-333.756566,0.00022539,2]
[393577760,1762812633658,-151.0,0.00022539,7]
[393577761,1762812633667,-151.0,0.00022539,7]
[393577762,1762812633810,-151.0,0.00022539,7]
[393577763,1762812633820,-151.0,0.00022539,7]
[393577764,1762812633829,-151.0,0.00022539,7]
[393577765,1762812633839,-151.0,0.00022539,7]
[393577766,1762812633848,-287.950792,0.00022539,7]
[393577767,1762812633858,-151.0,0.00022539,7]
[393577768,1762812633867,-151.0,0.00022539,7]
[393577769,1762812633877,-154.371137,0.00022539,7]
[393577770,1762812633887,-151.0,0.00022539,7]
[393577771,1762812633893,-216.986517,0.00022539,7]
[393577772,1762812633900,-217.581126,0.00022539,7]
[393577773,1762812633906,-217.581126,0.00022539,7]
[393577774,1762812633915,-217.581126,0.00022539,7]
[393577775,1762812633924,-217.581126,0.00022539,7]
[393577776,1762812633933,-217.581126,0.00022539,7]
[393577777,1762812633943,-217.581126,0.00022539,7]
[393577778,1762812633952,-217.581126,0.00022539,7]
[393577779,1762812633961,-217.581126,0.00022539,7]
[393577780,1762812633971,-217.581126,0.00022539,7]
[393577781,1762812633979,-217.581126,0.00022539,7]
[393577782,1762812633988,-217.581126,0.00022539,7]
[393577783,1762812633998,-217.581118,0.00022539,7]
[393577784,1762812634007,-151.0,0.00022539,2]
[393577785,1762812634017,-151.0,0.00022539,2]
[393577786,1762812634027,-10000.0,0.00022539,7]
[393577787,1762812634036,-10000.0,0.00022539,7]
[393577788,1762812634045,-10000.0,0.00022539,7]
[393577789,1762812634055,-10000.0,0.00022539,7]
[393577790,1762812634064,-10000.0,0.00022539,7]
[393577791,1762812634073,-10000.0,0.00022539,7]
[393577792,1762812634082,-10000.0,0.00022539,7]
[393577793,1762812634091,-9718.74226209,0.00022539,7]
[393577831,1762812638455,-500.0,0.00022241,2]
[393577833,1762812638467,-500.0,0.00022241,2]
[393577835,1762812638478,-500.0,0.00022241,2]
[393577837,1762812638487,-500.0,0.00022241,2]
[393577839,1762812638497,-500.0,0.00022241,2]
[393577841,1762812638507,-500.0,0.00022241,2]
[393577843,1762812638518,-500.0,0.00022241,2]
[393577845,1762812638528,-500.0,0.00022241,2]
[393577847,1762812638538,-500.0,0.00022241,2]
[393577849,1762812638548,-500.0,0.00022241,2]
[393577851,1762812638558,-500.0,0.00022241,2]
[393577853,1762812638568,-500.0,0.00022241,2]
[393577855,1762812638578,-500.0,0.00022241,2]
[393577857,1762812638587,-500.0,0.00022241,2]
[393577859,1762812638597,-500.0,0.00022241,2]
[393577861,1762812638606,-500.0,0.00022241,2]
[393577862,1762812638616,-451.0662333,0.00022241,2]
[393577864,1762812638626,-500.0,0.00022241,2]
[393577865,1762812638635,-500.0,0.00022241,2]
[393577866,1762812638645,-500.0,0.00022241,2]
[393577867,1762812638654,-500.0,0.00022241,2]
[393577868,1762812638664,-500.0,0.00022241,2]
[393577869,1762812638674,-500.0,0.00022241,2]
[393577870,1762812638684,-500.0,0.00022241,2]
[393577871,1762812638694,-500.0,0.00022241,2]
[393577872,1762812638704,-500.0,0.00022241,2]
[393577873,1762812638714,-500.0,0.00022241,2]
[393577874,1762812638724,-162.50447898,0.00022241,2]
[393577875,1762812638736,-337.49552102,0.00022241,2]
[393577876,1762812638746,-500.0,0.00022241,2]
[393577877,1762812638756,-500.0,0.00022241,2]
[393577878,1762812638766,-500.0,0.00022241,2]
[393577879,1762812638780,-500.0,0.00022241,2]
[393577880,1762812638792,-500.0,0.00022241,2]
[393577881,1762812638805,-500.0,0.00022241,2]
[393577882,1762812638818,-500.0,0.00022241,2]
[393577883,1762812638832,-500.0,0.00022241,2]
[393577884,1762812638844,-500.0,0.00022241,2]
[393577885,1762812638855,-500.0,0.00022241,2]
[393577886,1762812638866,-500.0,0.00022241,2]
[393577887,1762812638878,-500.0,0.00022241,2]
[393577888,1762812638891,-218.37766464,0.00022241,2]
[393577889,1762812638904,-500.0,0.00022241,2]
[393577890,1762812638916,-500.0,0.00022241,2]
[393577891,1762812638927,-500.0,0.00022241,2]
[393577892,1762812638940,-500.0,0.00022241,2]
[393577893,1762812638952,-500.0,0.00022241,2]
[393577894,1762812638964,-500.0,0.00022241,2]
[393577895,1762812638977,-500.0,0.00022241,2]
[393577896,1762812638991,-500.0,0.00022241,2]
[393577897,1762812639004,-500.0,0.00022241,2]
[393577898,1762812639017,-500.0,0.00022241,2]
[393577899,1762812639031,-228.51184013,0.00022241,2]
[393577900,1762812639048,-271.48815987,0.00022241,2]
[393577901,1762812639062,-500.0,0.00022241,2]
[393577902,1762812639076,-500.0,0.00022241,2]
[393577903,1762812639088,-500.0,0.00022241,2]
[393577904,1762812639100,-500.0,0.00022241,2]
[393577905,1762812639112,-500.0,0.00022241,2]
[393577906,1762812639124,-446.91635023,0.00022241,2]
[393577949,1762812640629,-53.08364977,0.00022241,2]
[393577951,1762812640640,-500.0,0.00022241,2]
[393577952,1762812640651,-500.0,0.00022241,2]
[393577954,1762812640662,-562.61726065,0.00022241,2]
[393577956,1762812640673,-500.0,0.00022241,2]
[393577957,1762812640683,-500.0,0.00022241,2]
[393577958,1762812640692,-500.0,0.00022241,2]
[393577959,1762812640702,-500.0,0.00022241,2]
[393577960,1762812640715,-500.0,0.00022241,2]
[393577961,1762812640728,-500.0,0.00022241,2]
[393577962,1762812640739,-500.0,0.00022241,2]
[393577963,1762812640750,-151.0,0.00022438,7]
[393577964,1762812640762,-158.9148532,0.00022447,2]
[393577965,1762812640774,-151.0,0.00022538,7]
[393577966,1762812640786,-281.25773791,0.00022539,7]
[393577967,1762812640797,-6590.52699738,0.00022539,7]
[393577968,1762812640812,-3409.47300262,0.00022539,7]
[393577969,1762812640824,-10000.0,0.00022539,7]
[393577970,1762812640835,-151.0,0.0002254,7]
[393577971,1762812640846,-316.026868,0.0002254,7]
[393577972,1762812640858,-316.026868,0.0002254,7]
[393577973,1762812640871,-316.026868,0.0002254,7]
[393577974,1762812640882,-316.026868,0.0002254,7]
[393577975,1762812640894,-316.026868,0.0002254,7]
[393577976,1762812640907,-316.026868,0.0002254,7]
[393577977,1762812640919,-316.026868,0.0002254,7]
[393577978,1762812640931,-316.026868,0.0002254,7]
[393577979,1762812640942,-333.756566,0.0002254,2]
[393577980,1762812640952,-333.756566,0.0002254,2]
[393577981,1762812640962,-333.756566,0.0002254,2]
[393577982,1762812640972,-333.756566,0.0002254,2]
[393577983,1762812640982,-151.0,0.0002254,2]
[393577984,1762812640995,-151.0,0.0002254,2]
[393577985,1762812641006,-151.74780477,0.0002254,2]
[393577986,1762812641018,-151.99056464,0.0002254,2]
[393577987,1762812641029,-151.0,0.0002254,2]
[393577988,1762812641041,-151.0,0.0002254,2]
[393577989,1762812641052,-151.0,0.0002254,2]
[393577990,1762812641065,-151.0,0.0002254,2]
[393577991,1762812641077,-151.0,0.0002254,2]
[393577992,1762812641088,-151.0,0.0002254,2]
[393577993,1762812641098,-151.0,0.00022541,7]
[393577994,1762812641108,-151.0,0.00022541,7]
[393577995,1762812641119,-316.026868,0.00022541,7]
[393577996,1762812641130,-316.026868,0.00022541,7]
[393577997,1762812641140,-316.026868,0.00022541,7]
[393577998,1762812641151,-316.026868,0.00022541,7]
[393577999,1762812641162,-316.026868,0.00022541,7]
[393578000,1762812641173,-316.026868,0.00022541,7]
[393578001,1762812641183,-316.026868,0.00022541,7]
[393578002,1762812641193,-316.026868,0.00022541,7]
[393578003,1762812641203,-316.026868,0.00022541,7]
[393578004,1762812641215,-316.026868,0.00022541,7]
[393578005,1762812641226,-316.026868,0.00022541,7]
[393578006,1762812641236,-316.026868,0.00022541,7]
[393578007,1762812641247,-333.756566,0.00022541,2]
[393578008,1762812641259,-333.756566,0.00022541,2]
[393578009,1762812641270,-333.756566,0.00022541,2]
[393578010,1762812641280,-333.756566,0.00022541,2]
[393578011,1762812641291,-333.756566,0.00022541,2]
[393578012,1762812641302,-333.756566,0.00022541,2]
[393578013,1762812641312,-333.756566,0.00022541,2]
[393578014,1762812641322,-333.756566,0.00022541,2]
[393578015,1762812641333,-191.24671159,0.00022541,2]
[393578016,1762812641356,-254.31423475,0.00022541,2]
[393578017,1762812641369,-164.13386411,0.00022541,2]
[393578018,1762812641381,-151.0,0.00022542,7]
[393578019,1762812641398,-500.0,0.00022573,2]
[393578020,1762812641410,-412.86149981,0.00022573,2]
[393578021,1762812641421,-573.34682906,0.00022573,2]
[393578022,1762812641432,-151.0,0.00022595,2]
[393578023,1762812641444,-165.25786638,0.00022595,2]
[393578024,1762812641455,-151.0,0.00022595,2]
[393578025,1762812641469,-151.0,0.00022595,2]
[393578026,1762812641480,-151.0,0.00022595,2]
[393578027,1762812641491,-151.0,0.000226,8]
[393578028,1762812641502,-151.0,0.00022642,7]
[393578029,1762812641514,-151.0,0.00022642,7]
[393578030,1762812641525,-151.0,0.00022642,7]
[393578031,1762812641535,-151.0,0.00022642,7]
[393578032,1762812641547,-187.65288,0.00022642,7]
[393578033,1762812641558,-278.307965,0.00022642,7]
[393578034,1762812641568,-151.0,0.00022642,2]
[393578035,1762812641579,-151.0,0.00022642,2]
[393578036,1762812641590,-151.0,0.00022642,2]
[393578037,1762812641602,-151.0,0.00022642,2]
[393578038,1762812641612,-151.66255476,0.00022642,2]
[393578039,1762812641624,-195.53526998,0.00022642,2]
[393578040,1762812641636,-151.0,0.00022642,2]
[393578041,1762812641647,-219.12455009,0.00022642,2]
[393578042,1762812641659,-151.0,0.00022642,2]
[393578043,1762812641670,-151.0,0.00022642,2]
[393578044,1762812641681,-151.15914308,0.00022642,2]
[393578045,1762812641691,-151.0,0.00022643,7]
[393578046,1762812641703,-151.0,0.00022643,7]
[393578047,1762812641849,-227.166397,0.00022644,7]
[393578048,1762812641859,-227.166397,0.00022644,7]
[393578049,1762812641868,-227.166397,0.00022644,7]
[393578050,1762812641878,-227.166397,0.00022644,7]
[393578051,1762812641887,-227.166397,0.00022644,7]
[393578052,1762812641896,-227.166397,0.00022644,7]
[393578053,1762812641905,-227.166397,0.00022644,7]
[393578054,1762812641915,-227.166397,0.00022644,7]
[393578055,1762812641924,-156.135253,0.00022644,7]
[393578056,1762812641933,-151.0,0.00022644,7]
[393578057,1762812641942,-226.57732,0.00022644,7]
[393578058,1762812641952,-151.0,0.00022644,7]
[393578059,1762812641963,-195.310147,0.00022644,7]
[393578060,1762812641973,-227.166397,0.00022645,7]
[393578061,1762812641982,-227.166397,0.00022645,7]
[393578062,1762812641994,-227.166397,0.00022645,7]
[393578063,1762812642003,-227.166397,0.00022645,7]
[393578064,1762812642012,-227.166397,0.00022645,7]
[393578065,1762812642021,-227.166397,0.00022645,7]
[393578066,1762812642030,-227.166397,0.00022645,7]
[393578067,1762812642040,-227.166397,0.00022645,7]
[393578068,1762812642049,-227.166397,0.00022645,7]
[393578069,1762812642059,-227.166397,0.00022645,7]
[393578070,1762812642069,-227.166397,0.00022645,7]
[393578071,1762812642079,-227.166392,0.00022645,7]
[393578072,1762812642090,-198.0,0.0002265,2]
[393578073,1762812642102,-151.0,0.0002265,2]
[393578074,1762812642113,-198.0,0.0002265,2]
[393578075,1762812642124,-151.0,0.0002265,2]
[393578076,1762812642135,-614.44,0.00022663,3]
[393578077,1762812642146,-307.22,0.00022663,3]
[393578078,1762812642158,-153.61,0.00022663,3]
[393578079,1762812642169,-460.85,0.00022663,3]
[393578080,1762812642181,-515.70850134,0.00022673,2]
[393578081,1762812642191,-501.12742325,0.00022673,2]
[393578082,1762812642202,-500.0,0.00022673,2]
[393578083,1762812642215,-500.0,0.00022673,2]
[393578084,1762812642226,-506.76636232,0.00022673,2]
[393578085,1762812642237,-616.39857661,0.00022673,2]
[393578086,1762812642248,-503.80245893,0.00022673,2]
[393578087,1762812642259,-500.0,0.00022673,2]
[393578088,1762812642269,-501.89871753,0.00022673,2]
[393578089,1762812642279,-500.0,0.00022673,2]
[393578090,1762812642290,-500.0,0.00022673,2]
[393578091,1762812642300,-500.0,0.00022673,2]
[393578092,1762812642309,-500.0,0.00022673,2]
[393578093,1762812642319,-500.0,0.00022673,2]
[393578094,1762812642329,-89442.30738349,0.00022696,2]
[393578095,1762812642342,-16139.2,0.00022696,2]
[393578117,1762812646147,-49231.36675677,0.00022696,2]
[393578122,1762812646837,-5955.88767407,0.00022696,2]
[393578123,1762812647008,-250693.54355198,0.00022696,2]
[393579513,1762813352126,166.0,0.00020831,120]
[393579514,1762813353528,166.0,0.00021873,120]
[393579515,1762813354827,166.0,0.00022966,120]
[393579516,1762813356091,166.0,0.00024114,120]
[393579517,1762813357388,166.0,0.0002532,120]
[393579518,1762813358658,166.0,0.00026586,120]
[393579519,1762813359915,166.0,0.00027915,120]
[393579520,1762813361213,166.0,0.00029311,120]
[393579521,1762813362499,166.0,0.00030777,120]
[393579533,1762813609156,396.400584,0.00013699,2]
[393579535,1762813633123,-264.65194894,0.00020187,2]
[393579536,1762813642090,-131.74863506,0.00020187,2]
[393579537,1762813642111,-5000.0,0.00020347,4]
[393579538,1762813642132,-209.97894485,0.00020553,2]
[393579539,1762813642153,-377.58413863,0.00020553,2]
[393579540,1762813642174,-150.0,0.00021229,2]
[393579541,1762813642324,-679.724374,0.00021335,2]
[393579542,1762813642346,-300.0,0.00021632,2]
[393579543,1762813642367,-195.40203582,0.00021633,2]
[393579544,1762813642388,-351.72366448,0.00021633,2]
[393579545,1762813642408,-435.52434676,0.00021633,2]
[393579599,1762813831667,-300.0,0.00020551,2]
[393579601,1762813831676,-189.76216787,0.00020552,2]
[393579603,1762813831686,-515.23783213,0.00020552,2]
[393579650,1762813837775,-47.71382207,0.00020552,2]
[393579651,1762813837785,-1013.31297757,0.00020552,2]
[393579652,1762813837794,-1349.34498105,0.00020552,2]
[393579658,1762813839823,-536.24038126,0.00020346,4]
[393579659,1762813839832,-452.1003124,0.00020552,2]
[393579660,1762813839842,-150.0,0.00020984,2]